fUST/lending_fUST_20250828
["ID","MTS","AMOUNT","RATE_DAILY","PERIOD"]
[381713993,1756317056995,-480.0,0.00022739,2]
[381713995,1756317057005,-1139.99,0.00022739,2]
[381713997,1756317057014,-480.0,0.00022739,2]
[381713999,1756317057023,-480.0,0.00022739,2]
[381714001,1756317057033,-2881.12,0.00022739,2]
[381714003,1756317057042,-604.76,0.00022739,2]
[381714005,1756317057051,-480.0,0.00022739,2]
[381714007,1756317057060,-480.0,0.00022739,2]
[381714009,1756317057070,-480.0,0.00022739,2]
[381714012,1756317057079,-480.0,0.00022739,2]
[381714014,1756317057089,-480.0,0.00022739,2]
[381714016,1756317057098,-922.9,0.00022739,2]
[381714018,1756317057108,-480.0,0.00022739,2]
[381714020,1756317057118,-480.0,0.00022739,2]
[381714021,1756317057127,-1070.32,0.00022739,2]
[381714023,1756317057136,-480.0,0.00022739,2]
[381714025,1756317057145,-480.0,0.00022739,2]
[381714028,1756317057155,-648.18,0.00022739,2]
[381714029,1756317057164,-480.0,0.00022739,2]
[381714031,1756317057173,-480.0,0.00022739,2]
[381714033,1756317057182,-606.27,0.00022739,2]
[381714034,1756317057191,-480.0,0.00022739,2]
[381714035,1756317057200,-480.0,0.00022739,2]
[381714036,1756317057210,-480.0,0.00022739,2]
[381714037,1756317057219,-480.0,0.00022739,2]
[381714038,1756317057228,-738.58,0.00022739,2]
[381714039,1756317057237,-480.0,0.00022739,2]
[381714040,1756317057247,-512.76,0.00022739,2]
[381714041,1756317057256,-480.0,0.00022739,2]
[381714042,1756317057265,-480.0,0.00022739,2]
[381714043,1756317057275,-480.0,0.00022739,2]
[381714044,1756317057284,-923.03,0.00022739,2]
[381714045,1756317057293,-480.0,0.00022739,2]
[381714047,1756317057303,-511.4,0.00022739,2]
[381714049,1756317057312,-480.0,0.00022739,2]
[381714051,1756317057321,-480.0,0.00022739,2]
[381714053,1756317057331,-480.0,0.00022739,2]
[381714055,1756317057340,-480.0,0.00022739,2]
[381714057,1756317057349,-480.0,0.00022739,2]
[381714059,1756317057358,-480.0,0.00022739,2]
[381714061,1756317057367,-480.0,0.00022739,2]
[381714063,1756317057377,-480.0,0.00022739,2]
[381714065,1756317057386,-500.0,0.00022739,2]
[381714066,1756317057395,-480.0,0.00022739,2]
[381714068,1756317057404,-480.0,0.00022739,2]
[381714070,1756317057413,-671.0,0.00022739,2]
[381714072,1756317057422,-480.0,0.00022739,2]
[381714074,1756317057431,-480.0,0.00022739,2]
[381714076,1756317057440,-480.0,0.00022739,2]
[381714078,1756317057449,-480.0,0.00022739,2]
[381714080,1756317057459,-490.62,0.00022739,2]
[381714082,1756317057468,-480.0,0.00022739,2]
[381714084,1756317057477,-480.0,0.00022739,2]
[381714086,1756317057486,-480.0,0.00022739,2]
[381714088,1756317057495,-301.59797681,0.00022739,2]
[381714090,1756317057504,-480.0,0.00022739,2]
[381714092,1756317057514,-499.98,0.00022739,2]
[381714094,1756317057524,-480.0,0.00022739,2]
[381714095,1756317057534,-480.0,0.00022739,2]
[381714097,1756317057543,-480.0,0.00022739,2]
[381714099,1756317057552,-480.0,0.00022739,2]
[381714101,1756317057561,-528.66,0.00022739,2]
[381714103,1756317057571,-480.0,0.00022739,2]
[381714105,1756317057580,-1130.96,0.00022739,2]
[381714107,1756317057589,-480.0,0.00022739,2]
[381714109,1756317057598,-480.0,0.00022739,2]
[381714111,1756317057607,-480.0,0.00022739,2]
[381714112,1756317057617,-4782.65,0.00022739,2]
[381714114,1756317057626,-639.09,0.00022739,2]
[381714116,1756317057635,-480.0,0.00022739,2]
[381714118,1756317057646,-480.0,0.00022739,2]
[381714120,1756317057655,-480.0,0.00022739,2]
[381714122,1756317057664,-592.8,0.00022739,2]
[381714124,1756317057675,-480.0,0.00022739,2]
[381714126,1756317057685,-480.0,0.00022739,2]
[381714128,1756317057694,-480.0,0.00022739,2]
[381714129,1756317057703,-843.63,0.00022739,2]
[381714131,1756317057713,-480.0,0.00022739,2]
[381714133,1756317057722,-996.03,0.00022739,2]
[381714135,1756317057733,-480.0,0.00022739,2]
[381714137,1756317057742,-710.84,0.00022739,2]
[381714139,1756317057751,-480.0,0.00022739,2]
[381714141,1756317057760,-480.0,0.00022739,2]
[381714143,1756317057769,-480.0,0.00022739,2]
[381714145,1756317057778,-480.0,0.00022739,2]
[381714147,1756317057787,-480.0,0.00022739,2]
[381714149,1756317057795,-480.0,0.00022739,2]
[381714150,1756317057805,-711.04,0.00022739,2]
[381714151,1756317057814,-480.0,0.00022739,2]
[381714153,1756317057823,-480.0,0.00022739,2]
[381714155,1756317057832,-480.0,0.00022739,2]
[381714157,1756317057841,-958.28,0.00022739,2]
[381714159,1756317057850,-480.0,0.00022739,2]
[381714161,1756317057859,-1039.97,0.00022739,2]
[381714163,1756317057869,-202.43431876,0.00022739,2]
[381714165,1756317057879,-519.95,0.00022739,2]
[381714167,1756317057888,-511.37,0.00022739,2]
[381714169,1756317057897,-480.0,0.00022739,2]
[381714171,1756317057906,-480.0,0.00022739,2]
[381714173,1756317057915,-480.0,0.00022739,2]
[381714174,1756317057926,-480.0,0.00022739,2]
[381714176,1756317057935,-480.0,0.00022739,2]
[381714178,1756317057945,-482.77,0.00022739,2]
[381714180,1756317057954,-610.47,0.00022739,2]
[381714182,1756317057963,-480.0,0.00022739,2]
[381714184,1756317057972,-480.0,0.00022739,2]
[381714186,1756317057981,-480.0,0.00022739,2]
[381714188,1756317057991,-653.92,0.00022739,2]
[381714190,1756317058001,-480.0,0.00022739,2]
[381714192,1756317058010,-480.0,0.00022739,2]
[381714194,1756317058019,-480.0,0.00022739,2]
[381714196,1756317058029,-480.0,0.00022739,2]
[381714198,1756317058038,-480.0,0.00022739,2]
[381714200,1756317058047,-480.0,0.00022739,2]
[381714202,1756317058056,-480.0,0.00022739,2]
[381714204,1756317058065,-1224.96,0.00022739,2]
[381714206,1756317058074,-480.0,0.00022739,2]
[381714208,1756317058084,-480.0,0.00022739,2]
[381714210,1756317058093,-480.0,0.00022739,2]
[381714212,1756317058102,-480.0,0.00022739,2]
[381714213,1756317058111,-736.23,0.00022739,2]
[381714215,1756317058120,-480.0,0.00022739,2]
[381714217,1756317058129,-1445.71,0.00022739,2]
[381714219,1756317058140,-1037.95,0.00022739,2]
[381714221,1756317058149,-341.47224511,0.00022739,2]
[381714261,1756317058515,-170.11775489,0.00022739,2]
[381714263,1756317058526,-480.0,0.00022739,2]
[381714265,1756317058536,-1001.79,0.00022739,2]
[381714267,1756317058545,-480.0,0.00022739,2]
[381714269,1756317058554,-480.0,0.00022739,2]
[381714271,1756317058563,-480.0,0.00022739,2]
[381714273,1756317058573,-480.0,0.00022739,2]
[381714275,1756317058582,-480.0,0.00022739,2]
[381714277,1756317058592,-608.47,0.00022739,2]
[381714279,1756317058601,-480.0,0.00022739,2]
[381714281,1756317058610,-526.96,0.00022739,2]
[381714283,1756317058620,-673.95,0.00022739,2]
[381714285,1756317058629,-480.0,0.00022739,2]
[381714287,1756317058639,-3457.5,0.00022739,2]
[381714289,1756317058647,-630.42,0.00022739,2]
[381714291,1756317058657,-480.0,0.00022739,2]
[381714293,1756317058666,-480.0,0.00022739,2]
[381714295,1756317058676,-1538.01,0.00022739,2]
[381714297,1756317058685,-480.0,0.00022739,2]
[381714299,1756317058695,-480.0,0.00022739,2]
[381714300,1756317058704,-480.0,0.00022739,2]
[381714302,1756317058714,-480.0,0.00022739,2]
[381714304,1756317058724,-480.0,0.00022739,2]
[381714306,1756317058733,-480.0,0.00022739,2]
[381714308,1756317058742,-524.39,0.00022739,2]
[381714310,1756317058752,-480.0,0.00022739,2]
[381714312,1756317058762,-480.0,0.00022739,2]
[381714314,1756317058771,-480.0,0.00022739,2]
[381714316,1756317058780,-3251.6,0.00022739,2]
[381714318,1756317058790,-480.0,0.00022739,2]
[381714320,1756317058800,-480.0,0.00022739,2]
[381714322,1756317058809,-499.55,0.00022739,2]
[381714324,1756317058819,-480.0,0.00022739,2]
[381714326,1756317058829,-480.0,0.00022739,2]
[381714328,1756317058839,-584.58,0.00022739,2]
[381714330,1756317058848,-480.0,0.00022739,2]
[381714332,1756317058858,-480.0,0.00022739,2]
[381714334,1756317058868,-480.0,0.00022739,2]
[381714337,1756317058878,-504.95,0.00022739,2]
[381714338,1756317058887,-480.0,0.00022739,2]
[381714340,1756317058897,-480.0,0.00022739,2]
[381714342,1756317058907,-480.0,0.00022739,2]
[381714345,1756317058918,-1050.21,0.00022739,2]
[381714346,1756317058930,-1318.38,0.00022739,2]
[381714349,1756317058940,-480.0,0.00022739,2]
[381714351,1756317058950,-655.98,0.00022739,2]
[381714353,1756317058959,-1404.91,0.00022739,2]
[381714355,1756317058968,-2797.72,0.00022739,2]
[381714357,1756317058979,-480.0,0.00022739,2]
[381714359,1756317058989,-480.0,0.00022739,2]
[381714361,1756317059000,-480.0,0.00022739,2]
[381714363,1756317059009,-480.0,0.00022739,2]
[381714365,1756317059019,-1827.79,0.00022739,2]
[381714367,1756317059028,-480.0,0.00022739,2]
[381714369,1756317059038,-480.0,0.00022739,2]
[381714370,1756317059047,-480.0,0.00022739,2]
[381714372,1756317059057,-1078.58,0.00022739,2]
[381714375,1756317059067,-1579.67,0.00022739,2]
[381714377,1756317059078,-480.0,0.00022739,2]
[381714378,1756317059087,-480.0,0.00022739,2]
[381714381,1756317059097,-480.0,0.00022739,2]
[381714383,1756317059107,-480.0,0.00022739,2]
[381714385,1756317059117,-3592.09,0.00022739,2]
[381714387,1756317059127,-480.0,0.00022739,2]
[381714388,1756317059139,-1418.8,0.00022739,2]
[381714390,1756317059149,-1116.65,0.00022739,2]
[381714392,1756317059163,-480.0,0.00022739,2]
[381714394,1756317059172,-480.0,0.00022739,2]
[381714396,1756317059183,-480.0,0.00022739,2]
[381714399,1756317059193,-684.35,0.00022739,2]
[381714400,1756317059202,-480.0,0.00022739,2]
[381714402,1756317059212,-480.0,0.00022739,2]
[381714404,1756317059223,-480.0,0.00022739,2]
[381714407,1756317059232,-480.0,0.00022739,2]
[381714408,1756317059242,-480.0,0.00022739,2]
[381714410,1756317059251,-3691.86,0.00022739,2]
[381714412,1756317059262,-480.0,0.00022739,2]
[381714414,1756317059271,-480.0,0.00022739,2]
[381714416,1756317059280,-1068.18,0.00022739,2]
[381714418,1756317059290,-480.0,0.00022739,2]
[381714420,1756317059299,-980.75,0.00022739,2]
[381714422,1756317059308,-480.0,0.00022739,2]
[381714424,1756317059318,-480.0,0.00022739,2]
[381714426,1756317059328,-480.0,0.00022739,2]
[381714428,1756317059338,-480.0,0.00022739,2]
[381714430,1756317059348,-432.75125563,0.00022739,2]
[381714432,1756317059357,-480.0,0.00022739,2]
[381714434,1756317059366,-480.0,0.00022739,2]
[381714437,1756317059376,-480.0,0.00022739,2]
[381714439,1756317059386,-480.0,0.00022739,2]
[381714441,1756317059395,-796.19,0.00022739,2]
[381714443,1756317059404,-607.08,0.00022739,2]
[381714445,1756317059414,-480.0,0.00022739,2]
[381714447,1756317059424,-845.61,0.00022739,2]
[381714449,1756317059434,-554.26,0.00022739,2]
[381714451,1756317059443,-480.0,0.00022739,2]
[381714453,1756317059453,-480.0,0.00022739,2]
[381714454,1756317059463,-480.0,0.00022739,2]
[381714455,1756317059472,-480.0,0.00022739,2]
[381714456,1756317059481,-194.03894444,0.00022739,2]
[381714457,1756317059491,-480.0,0.00022739,2]
[381714458,1756317059500,-562.74,0.00022739,2]
[381714459,1756317059510,-1226.97,0.00022739,2]
[381714460,1756317059519,-480.0,0.00022739,2]
[381714461,1756317059528,-753.67,0.00022739,2]
[381714462,1756317059538,-480.0,0.00022739,2]
[381714463,1756317059547,-480.0,0.00022739,2]
[381714464,1756317059556,-633.99,0.00022739,2]
[381714465,1756317059565,-480.0,0.00022739,2]
[381714466,1756317059575,-480.0,0.00022739,2]
[381714467,1756317059585,-951.31,0.00022739,2]
[381714468,1756317059594,-503.35,0.00022739,2]
[381714469,1756317059603,-631.86,0.00022739,2]
[381714470,1756317059613,-480.0,0.00022739,2]
[381714471,1756317059622,-480.0,0.00022739,2]
[381714472,1756317059631,-866.53,0.00022739,2]
[381714473,1756317059640,-480.0,0.00022739,2]
[381714474,1756317059650,-480.0,0.00022739,2]
[381714475,1756317059659,-1284.45,0.00022739,2]
[381714476,1756317059669,-1258.13,0.00022739,2]
[381714477,1756317059678,-480.0,0.00022739,2]
[381714478,1756317059687,-3967.56,0.00022739,2]
[381714479,1756317059697,-480.0,0.00022739,2]
[381714480,1756317059706,-480.0,0.00022739,2]
[381714481,1756317059716,-2216.97,0.00022739,2]
[381714482,1756317059726,-480.0,0.00022739,2]
[381714483,1756317059735,-961.81,0.00022739,2]
[381714484,1756317059745,-480.0,0.00022739,2]
[381714485,1756317059754,-480.0,0.00022739,2]
[381714486,1756317059764,-480.0,0.00022739,2]
[381714487,1756317059774,-480.0,0.00022739,2]
[381714489,1756317059784,-480.0,0.00022739,2]
[381714491,1756317059793,-2354.93,0.00022739,2]
[381714493,1756317059803,-480.0,0.00022739,2]
[381714495,1756317059813,-480.0,0.00022739,2]
[381714497,1756317059823,-625.42,0.00022739,2]
[381714499,1756317059833,-480.0,0.00022739,2]
[381714501,1756317059842,-2040.06,0.00022739,2]
[381714502,1756317059852,-480.0,0.00022739,2]
[381714504,1756317059861,-961.15,0.00022739,2]
[381714507,1756317059871,-480.0,0.00022739,2]
[381714509,1756317059881,-480.0,0.00022739,2]
[381714511,1756317059890,-500.0,0.00022739,2]
[381714513,1756317059900,-480.0,0.00022739,2]
[381714514,1756317059910,-480.0,0.00022739,2]
[381714517,1756317059922,-1024.55,0.00022739,2]
[381714519,1756317059934,-480.0,0.00022739,2]
[381714521,1756317059944,-410.30263306,0.00022739,2]
[381714522,1756317059953,-480.0,0.00022739,2]
[381714524,1756317059963,-480.0,0.00022739,2]
[381714526,1756317059972,-480.0,0.00022739,2]
[381714528,1756317059981,-598.56,0.00022739,2]
[381714530,1756317059991,-480.0,0.00022739,2]
[381714532,1756317060002,-480.0,0.00022739,2]
[381714534,1756317060012,-838.19,0.00022739,2]
[381714536,1756317060021,-480.0,0.00022739,2]
[381714538,1756317060031,-534.84,0.00022739,2]
[381714540,1756317060040,-480.0,0.00022739,2]
[381714542,1756317060050,-480.0,0.00022739,2]
[381714544,1756317060060,-598.08,0.00022739,2]
[381714546,1756317060070,-480.0,0.00022739,2]
[381714548,1756317060080,-580.66,0.00022739,2]
[381714551,1756317060091,-480.0,0.00022739,2]
[381714553,1756317060101,-480.0,0.00022739,2]
[381714555,1756317060110,-480.0,0.00022739,2]
[381714557,1756317060120,-480.0,0.00022739,2]
[381714559,1756317060130,-1303.97,0.00022739,2]
[381714561,1756317060139,-480.0,0.00022739,2]
[381714563,1756317060149,-531.0,0.00022739,2]
[381714565,1756317060159,-480.0,0.00022739,2]
[381714567,1756317060168,-480.0,0.00022739,2]
[381714569,1756317060178,-678.65,0.00022739,2]
[381714571,1756317060188,-480.0,0.00022739,2]
[381714573,1756317060199,-697.3,0.00022739,2]
[381714575,1756317060209,-176.256,0.0002282,2]
[381714577,1756317060218,-216.14835892,0.0002283,2]
[381714579,1756317060228,-160.0,0.0002283,2]
[381714581,1756317060237,-529.56067766,0.0002283,2]
[381714583,1756317060247,-425.44119842,0.0002283,2]
[381714585,1756317060257,-12707.75045307,0.00022831,2]
[381714587,1756317060267,-232.59867797,0.00022831,2]
[381714589,1756317060276,-845.298898,0.00022831,2]
[381714591,1756317060286,-217.23771399,0.00022831,2]
[381714593,1756317060297,-160.0,0.00022831,2]
[381714595,1756317060307,-160.0,0.00022831,2]
[381714597,1756317060316,-160.0,0.00022831,2]
[381714599,1756317060325,-417.15472785,0.00022831,2]
[381714601,1756317060335,-160.0,0.00022831,2]
[381714603,1756317060344,-160.0,0.00022831,2]
[381714605,1756317060354,-420.0,0.00022834,2]
[381714607,1756317060363,-480.0,0.0002284,2]
[381714609,1756317060373,-974.0,0.00022841,2]
[381714611,1756317060382,-2157.0,0.00022841,2]
[381714613,1756317060392,-638.0,0.00022841,2]
[381714615,1756317060401,-772.067,0.0002294,2]
[381714617,1756317060411,-160.0,0.0002295,2]
[381714619,1756317060420,-500.0,0.00023,2]
[381714621,1756317060429,-160.0,0.00023,2]
[381714623,1756317060438,-480.0,0.00023013,2]
[381714625,1756317060448,-480.0,0.00023013,2]
[381714627,1756317060457,-480.0,0.00023013,2]
[381714628,1756317060466,-480.0,0.00023013,2]
[381714630,1756317060476,-480.0,0.00023013,2]
[381714632,1756317060485,-480.0,0.00023013,2]
[381714634,1756317060494,-480.0,0.00023013,2]
[381714636,1756317060503,-480.0,0.00023013,2]
[381714665,1756317060513,-480.0,0.00023013,2]
[381714668,1756317060778,-480.0,0.00023013,2]
[381714670,1756317060788,-480.0,0.00023013,2]
[381714672,1756317060799,-480.0,0.00023013,2]
[381714674,1756317060808,-480.0,0.00023013,2]
[381714676,1756317060818,-480.0,0.00023013,2]
[381714678,1756317060827,-480.0,0.00023013,2]
[381714680,1756317060837,-480.0,0.00023013,2]
[381714682,1756317060846,-480.0,0.00023013,2]
[381714684,1756317060857,-618.17,0.00023013,2]
[381714686,1756317060866,-480.0,0.00023013,2]
[381714687,1756317060876,-480.0,0.00023013,2]
[381714689,1756317060886,-480.0,0.00023013,2]
[381714691,1756317060896,-529.11,0.00023013,2]
[381714693,1756317060906,-480.0,0.00023013,2]
[381714696,1756317060916,-480.0,0.00023013,2]
[381714698,1756317060929,-555.52,0.00023013,2]
[381714700,1756317060939,-480.0,0.00023013,2]
[381714702,1756317060948,-480.0,0.00023013,2]
[381714704,1756317060957,-480.0,0.00023013,2]
[381714706,1756317060967,-480.0,0.00023013,2]
[381714707,1756317060977,-480.0,0.00023013,2]
[381714709,1756317060987,-168.7427964,0.00023013,2]
[381714712,1756317060999,-480.0,0.00023013,2]
[381714714,1756317061009,-480.0,0.00023013,2]
[381714716,1756317061019,-480.0,0.00023013,2]
[381714718,1756317061028,-480.0,0.00023013,2]
[381714720,1756317061038,-480.0,0.00023013,2]
[381714722,1756317061047,-679.74,0.00023013,2]
[381714724,1756317061057,-480.0,0.00023013,2]
[381714726,1756317061066,-480.0,0.00023013,2]
[381714727,1756317061075,-480.0,0.00023013,2]
[381714730,1756317061085,-480.0,0.00023013,2]
[381714732,1756317061094,-480.0,0.00023013,2]
[381714734,1756317061104,-888.74,0.00023013,2]
[381714736,1756317061114,-480.0,0.00023013,2]
[381714738,1756317061124,-480.0,0.00023013,2]
[381714740,1756317061133,-1044.32,0.00023013,2]
[381714742,1756317061144,-480.0,0.00023013,2]
[381714744,1756317061154,-748.22,0.00023013,2]
[381714745,1756317061164,-480.0,0.00023013,2]
[381714747,1756317061174,-480.0,0.00023013,2]
[381714749,1756317061183,-480.0,0.00023013,2]
[381714752,1756317061193,-480.0,0.00023013,2]
[381714753,1756317061203,-480.0,0.00023013,2]
[381714755,1756317061213,-480.0,0.00023013,2]
[381714757,1756317061222,-503.04,0.00023013,2]
[381714759,1756317061232,-480.0,0.00023013,2]
[381714761,1756317061241,-559.96,0.00023013,2]
[381714763,1756317061251,-480.0,0.00023013,2]
[381714765,1756317061261,-480.0,0.00023013,2]
[381714768,1756317061270,-480.0,0.00023013,2]
[381714770,1756317061280,-480.0,0.00023013,2]
[381714771,1756317061289,-480.0,0.00023013,2]
[381714774,1756317061299,-480.0,0.00023013,2]
[381714776,1756317061308,-480.0,0.00023013,2]
[381714777,1756317061319,-480.0,0.00023013,2]
[381714780,1756317061329,-480.0,0.00023013,2]
[381714782,1756317061339,-480.0,0.00023013,2]
[381714784,1756317061349,-480.0,0.00023013,2]
[381714786,1756317061358,-548.2,0.00023013,2]
[381714788,1756317061369,-480.0,0.00023013,2]
[381714790,1756317061379,-490.49,0.00023013,2]
[381714792,1756317061391,-480.0,0.00023013,2]
[381714794,1756317061401,-552.55,0.00023013,2]
[381714796,1756317061411,-480.0,0.00023013,2]
[381714798,1756317061420,-480.0,0.00023013,2]
[381714800,1756317061430,-695.04,0.00023013,2]
[381714802,1756317061439,-480.0,0.00023013,2]
[381714804,1756317061449,-498.94,0.00023013,2]
[381714806,1756317061459,-5052.09,0.00023013,2]
[381714808,1756317061468,-480.0,0.00023013,2]
[381714810,1756317061478,-480.0,0.00023013,2]
[381714812,1756317061488,-480.0,0.00023013,2]
[381714814,1756317061498,-480.0,0.00023013,2]
[381714816,1756317061508,-785.3,0.00023013,2]
[381714818,1756317061518,-503.1,0.00023013,2]
[381714820,1756317061528,-480.0,0.00023013,2]
[381714822,1756317061539,-717.29,0.00023013,2]
[381714824,1756317061548,-480.0,0.00023013,2]
[381714826,1756317061557,-480.0,0.00023013,2]
[381714828,1756317061567,-1139.99,0.00023013,2]
[381714830,1756317061577,-480.0,0.00023013,2]
[381714832,1756317061586,-480.0,0.00023013,2]
[381714834,1756317061596,-2881.12,0.00023013,2]
[381714836,1756317061605,-604.76,0.00023013,2]
[381714838,1756317061615,-480.0,0.00023013,2]
[381714840,1756317061624,-480.0,0.00023013,2]
[381714842,1756317061633,-472.96494847,0.00023013,2]
[381714844,1756317061643,-480.0,0.00023013,2]
[381714846,1756317061653,-922.9,0.00023013,2]
[381714848,1756317061662,-480.0,0.00023013,2]
[381714850,1756317061672,-480.0,0.00023013,2]
[381714852,1756317061681,-1070.32,0.00023013,2]
[381714854,1756317061691,-480.0,0.00023013,2]
[381714856,1756317061700,-648.18,0.00023013,2]
[381714858,1756317061710,-480.0,0.00023013,2]
[381714860,1756317061719,-480.0,0.00023013,2]
[381714862,1756317061729,-606.27,0.00023013,2]
[381714864,1756317061738,-480.0,0.00023013,2]
[381714866,1756317061748,-480.0,0.00023013,2]
[381714868,1756317061758,-480.0,0.00023013,2]
[381714870,1756317061768,-480.0,0.00023013,2]
[381714872,1756317061778,-738.58,0.00023013,2]
[381714874,1756317061787,-480.0,0.00023013,2]
[381714876,1756317061797,-480.0,0.00023013,2]
[381714878,1756317061807,-512.76,0.00023013,2]
[381714880,1756317061816,-480.0,0.00023013,2]
[381714882,1756317061826,-480.0,0.00023013,2]
[381714884,1756317061835,-923.03,0.00023013,2]
[381714885,1756317061845,-480.0,0.00023013,2]
[381714887,1756317061855,-511.4,0.00023013,2]
[381714889,1756317061867,-480.0,0.00023013,2]
[381714891,1756317061877,-480.0,0.00023013,2]
[381714893,1756317061886,-480.0,0.00023013,2]
[381714895,1756317061896,-480.0,0.00023013,2]
[381714897,1756317061906,-520.83923092,0.00023013,2]
[381714899,1756317061917,-480.0,0.00023013,2]
[381714901,1756317061933,-480.0,0.00023013,2]
[381714903,1756317061943,-480.0,0.00023013,2]
[381714905,1756317061952,-500.0,0.00023013,2]
[381714907,1756317061962,-480.0,0.00023013,2]
[381714909,1756317061973,-671.0,0.00023013,2]
[381714911,1756317061983,-151.0,0.00023013,7]
[381714913,1756317061993,-480.0,0.00023013,2]
[381714915,1756317062005,-480.0,0.00023013,2]
[381714917,1756317062015,-480.0,0.00023013,2]
[381714919,1756317062025,-480.0,0.00023013,2]
[381714921,1756317062034,-490.62,0.00023013,2]
[381714923,1756317062043,-480.0,0.00023013,2]
[381714925,1756317062053,-480.0,0.00023013,2]
[381714927,1756317062062,-480.0,0.00023013,2]
[381714930,1756317062072,-480.0,0.00023013,2]
[381714932,1756317062082,-499.98,0.00023013,2]
[381714934,1756317062093,-480.0,0.00023013,2]
[381714936,1756317062102,-480.0,0.00023013,2]
[381714938,1756317062112,-480.0,0.00023013,2]
[381714940,1756317062121,-528.66,0.00023013,2]
[381714942,1756317062131,-480.0,0.00023013,2]
[381714944,1756317062141,-507.46530895,0.00023013,2]
[381714946,1756317062151,-1130.96,0.00023013,2]
[381714947,1756317062160,-480.0,0.00023013,2]
[381714948,1756317062169,-480.0,0.00023013,2]
[381714949,1756317062179,-151.0,0.00023013,7]
[381714950,1756317062188,-480.0,0.00023013,2]
[381714951,1756317062198,-4782.65,0.00023013,2]
[381714952,1756317062207,-639.09,0.00023013,2]
[381714953,1756317062216,-480.0,0.00023013,2]
[381714954,1756317062226,-480.0,0.00023013,2]
[381714956,1756317062235,-480.0,0.00023013,2]
[381714958,1756317062244,-592.8,0.00023013,2]
[381714960,1756317062254,-480.0,0.00023013,2]
[381714962,1756317062263,-480.0,0.00023013,2]
[381714964,1756317062272,-516.12417519,0.00023013,2]
[381714966,1756317062282,-843.63,0.00023013,2]
[381714968,1756317062291,-336.5844405,0.00023013,2]
[381714970,1756317062302,-996.03,0.00023013,2]
[381714972,1756317062311,-480.0,0.00023013,2]
[381714974,1756317062322,-710.84,0.00023013,2]
[381714976,1756317062331,-480.0,0.00023013,2]
[381714978,1756317062341,-480.0,0.00023013,2]
[381714980,1756317062351,-480.0,0.00023013,2]
[381714982,1756317062360,-480.0,0.00023013,2]
[381714984,1756317062370,-480.0,0.00023013,2]
[381714986,1756317062379,-711.04,0.00023013,2]
[381714988,1756317062390,-480.0,0.00023013,2]
[381714990,1756317062399,-480.0,0.00023013,2]
[381714992,1756317062409,-480.0,0.00023013,2]
[381714994,1756317062419,-958.28,0.00023013,2]